bitfinex-derivatives/quotes_BTCF0:USTF0_20250823
["timestamp","ask_amount","ask_price","bid_price","bid_amount"]
[1755983870148,1.91183533,115180.0,115170.0,1.41253]
[1755983870345,0.76423533,115180.0,115170.0,1.41253]
[1755983870540,1.55103533,115180.0,115170.0,1.41253]
[1755983871453,0.76423533,115180.0,115170.0,1.41253]
[1755983871655,1.55103533,115180.0,115170.0,1.41253]
[1755983873749,0.76423533,115180.0,115170.0,1.41253]
[1755983874056,1.55103533,115180.0,115170.0,1.41253]
[1755983876456,1.55093533,115180.0,115170.0,1.41253]
[1755983876656,1.55103533,115180.0,115170.0,1.41253]
[1755983882556,0.76423533,115180.0,115170.0,1.41253]
[1755983882755,1.55095533,115180.0,115170.0,1.41253]
[1755983883559,0.67712323,115180.0,115170.0,1.98809958]
[1755983883762,1.42563323,115180.0,115170.0,2.06629434]
[1755983883961,1.42563323,115180.0,115170.0,1.57757436]
[1755983884163,1.42563323,115180.0,115170.0,1.57657436]
[1755983884360,1.42763323,115180.0,115170.0,1.57557436]
[1755983884957,1.51447533,115180.0,115170.0,1.57557436]
[1755983885464,1.53919533,115180.0,115170.0,1.57557436]
[1755983885664,1.53919533,115180.0,115170.0,2.06429434]
[1755983886055,1.53919533,115180.0,115170.0,2.42509434]
[1755983886056,1.51447533,115180.0,115170.0,2.42509434]
[1755983886568,1.51447533,115180.0,115170.0,1.93637436]
[1755983887068,1.00164535,115180.0,115170.0,2.42509434]
[1755983889466,0.21492535,115180.0,115170.0,2.42509434]
[1755983889662,1.00160535,115180.0,115170.0,2.42509434]
[1755983891474,0.21492535,115180.0,115170.0,2.06429434]
[1755983891771,1.00160535,115180.0,115170.0,2.42509434]
[1755983895172,0.1958481,115180.0,115170.0,2.42509434]
[1755983895366,0.9824481,115180.0,115170.0,2.42509434]
[1755983897274,0.1958481,115180.0,115170.0,2.42509434]
[1755983897474,0.9824481,115180.0,115170.0,2.42509434]
[1755983898176,0.1958481,115180.0,115170.0,2.42509434]
[1755983898376,0.9824081,115180.0,115170.0,2.42509434]
[1755983900675,0.9824081,115180.0,115170.0,2.43384068]
[1755983904878,0.9824081,115180.0,115170.0,2.35564592]
[1755983906179,0.9824081,115180.0,115170.0,2.71644592]
[1755983906377,0.1958481,115180.0,115170.0,2.71644592]
[1755983906575,0.9823281,115180.0,115170.0,2.71644592]
[1755983907579,0.1958481,115180.0,115170.0,2.71644592]
[1755983907878,0.9823281,115180.0,115170.0,2.82514669]
[1755983908380,0.9823281,115180.0,115170.0,2.71644592]
[1755983908381,0.1958481,115180.0,115170.0,2.71644592]
[1755983908769,0.9823281,115180.0,115170.0,2.71644592]
[1755983909280,0.1958481,115180.0,115170.0,2.71644592]
[1755983909474,0.9823281,115180.0,115170.0,2.82514669]
[1755983909674,0.1958481,115180.0,115170.0,2.82514669]
[1755983909875,0.9823281,115180.0,115170.0,2.71644592]
[1755983910380,0.1958481,115180.0,115170.0,2.71644592]
[1755983910583,0.9822881,115180.0,115170.0,2.71644592]
[1755983911683,0.9822881,115180.0,115170.0,1.99484592]
[1755983911982,0.9822881,115180.0,115170.0,2.71644592]
[1755983912282,0.9822881,115180.0,115170.0,2.30587161]
[1755983912481,0.9822881,115180.0,115170.0,2.79459159]
[1755983913282,0.9822881,115180.0,115170.0,2.71644592]
[1755983913978,0.9916581,115180.0,115170.0,2.70769958]
[1755983914187,1.0072281,115180.0,115170.0,2.70769958]
[1755983914372,1.0320481,115180.0,115170.0,2.70769958]
[1755983914886,1.0321481,115180.0,115170.0,2.70769958]
[1755983915984,1.0459481,115180.0,115170.0,2.70769958]
[1755983916888,1.0459481,115180.0,115170.0,2.81640035]
[1755983920089,1.0458681,115180.0,115170.0,2.81640035]
[1755983923391,1.0458681,115180.0,115170.0,2.70769958]
[1755983928993,1.0458681,115180.0,115170.0,2.81640035]
[1755983930901,1.0458681,115180.0,115170.0,2.32768037]
[1755983931091,1.0458681,115180.0,115170.0,2.81640035]
[1755983935402,1.0458681,115180.0,115170.0,2.70769958]
[1755983936911,1.0458681,115180.0,115170.0,2.81640035]
[1755983937714,1.0458681,115180.0,115170.0,2.70769958]
[1755983941517,1.0458681,115180.0,115170.0,2.81640035]
[1755983942417,1.0458681,115180.0,115170.0,2.70769958]
[1755983942618,1.0458681,115180.0,115170.0,2.81640035]
[1755983944221,1.0458681,115180.0,115170.0,2.70769958]
[1755983952725,1.0458681,115180.0,115170.0,2.81640035]
[1755983953821,1.0457481,115180.0,115170.0,2.81640035]
[1755983954018,1.0318481,115180.0,115170.0,2.81640035]
[1755983954327,1.0070281,115180.0,115170.0,2.81640035]
[1755983957930,1.0297081,115180.0,115170.0,2.81640035]
[1755983967032,0.2434681,115180.0,115170.0,2.81640035]
[1755983967232,1.0069481,115180.0,115170.0,2.81640035]
[1755983968131,1.0069481,115180.0,115170.0,2.32768037]
[1755983968322,1.0307081,115180.0,115170.0,2.32768037]
[1755983968524,0.895166,115180.0,115170.0,2.89461058]
[1755983968724,0.895166,115180.0,115170.0,2.81640035]
[1755983973630,0.895166,115180.0,115170.0,2.70769958]
[1755983974132,0.895166,115180.0,115170.0,2.81708522]
[1755983978038,0.109006,115180.0,115170.0,2.81708522]
[1755983978239,0.895086,115180.0,115170.0,2.81708522]
[1755983980339,0.109006,115180.0,115170.0,2.81708522]
[1755983980543,0.895046,115180.0,115170.0,2.81708522]
[1755983980939,0.895046,115180.0,115170.0,2.70769958]
[1755983983845,0.109006,115180.0,115170.0,2.70769958]
[1755983984041,0.895046,115180.0,115170.0,2.81704828]
[1755983984249,0.895046,115180.0,115170.0,2.91704828]
[1755983985946,0.109006,115180.0,115170.0,2.91804828]
[1755983986139,0.895006,115180.0,115170.0,2.91804828]
[1755983987238,0.893006,115180.0,115170.0,2.91804828]
[1755983987645,0.893006,115180.0,115170.0,2.19644828]
[1755983987850,0.893006,115180.0,115170.0,2.91804828]
[1755983988041,0.107006,115180.0,115170.0,2.91804828]
[1755983988234,0.893006,115180.0,115170.0,2.91804828]
[1755983990138,0.893006,115180.0,115170.0,2.55724828]
[1755983990346,0.893006,115180.0,115170.0,2.91804828]
[1755983991147,0.893006,115180.0,115170.0,2.19644828]
[1755983991450,0.893006,115180.0,115170.0,2.91804828]
[1755983991747,0.893006,115180.0,115170.0,2.80869958]
[1755983994942,0.893006,115180.0,115170.0,2.96405811]
[1755983996050,0.107006,115180.0,115170.0,2.96405811]
[1755983996248,0.892966,115180.0,115170.0,2.96405811]
[1755983996448,0.892966,115180.0,115170.0,2.80869958]
[1755983999354,0.902296,115180.0,115170.0,2.80869958]
[1755983999554,0.955226,115180.0,115170.0,2.80869958]
[1755983999749,0.955226,115180.0,115170.0,2.70869958]
[1755984000355,0.955226,115180.0,115170.0,2.2199796]
[1755984000550,0.955226,115180.0,115170.0,2.70869958]
[1755984005359,0.956506,115180.0,115170.0,2.70869958]
[1755984007081,0.956506,115180.0,115170.0,2.86405811]
[1755984008383,0.956506,115180.0,115170.0,2.88186061]
[1755984016786,0.956506,115180.0,115170.0,2.72650208]
[1755984017577,0.956506,115180.0,115170.0,2.88186061]
[1755984018184,0.942536,115180.0,115170.0,2.88186061]
[1755984018788,0.956336,115180.0,115170.0,2.88186061]
[1755984020589,0.169096,115180.0,115170.0,2.88186061]
[1755984020787,0.955866,115180.0,115170.0,2.72650208]
[1755984022290,0.955866,115180.0,115170.0,2.88186061]
[1755984023491,0.955866,115180.0,115170.0,2.16026061]
[1755984023687,0.955866,115180.0,115170.0,2.88186061]
[1755984025294,0.918666,115180.0,115170.0,2.88186061]
[1755984025596,0.107006,115180.0,115170.0,2.88186061]
[1755984025788,0.893366,115180.0,115170.0,2.88186061]
[1755984030492,0.919456,115180.0,115170.0,2.39314063]
[1755984030796,0.957276,115180.0,115170.0,2.88186061]
[1755984032391,0.957106,115180.0,115170.0,2.88186061]
[1755984032898,0.957276,115180.0,115170.0,2.88186061]
[1755984033598,0.957276,115180.0,115170.0,2.72650208]
[1755984038498,0.957276,115180.0,115170.0,2.2377821]
[1755984038699,0.957276,115180.0,115170.0,2.72650208]
[1755984040194,0.957276,115180.0,115170.0,2.835973]
[1755984042306,0.957276,115180.0,115170.0,2.72650208]
[1755984051394,0.957276,115180.0,115170.0,2.88186061]
[1755984053008,0.957276,115180.0,115170.0,2.72650208]
[1755984053510,0.957176,115180.0,115170.0,2.72650208]
[1755984053699,0.957276,115180.0,115170.0,2.72650208]
[1755984053896,0.957276,115180.0,115170.0,2.88186061]
[1755984056012,0.957106,115180.0,115170.0,2.88186061]
[1755984058008,0.170746,115180.0,115170.0,2.88186061]
[1755984058208,0.956746,115180.0,115170.0,2.88186061]
[1755984058608,0.170746,115180.0,115170.0,2.88186061]
[1755984058803,0.943016,115180.0,115170.0,2.88186061]
[1755984059611,0.943016,115180.0,115170.0,2.16026061]
[1755984059811,0.943016,115180.0,115170.0,2.88186061]
[1755984060113,0.943016,115180.0,115170.0,2.16026061]
[1755984060319,0.919096,115180.0,115170.0,2.88186061]
[1755984066620,0.919096,115180.0,115170.0,2.72650208]
[1755984068920,0.941846,115180.0,115170.0,2.72650208]
[1755984069915,0.955446,115180.0,115170.0,2.72650208]
[1755984070112,0.955616,115180.0,115170.0,2.72650208]
[1755984070312,0.955716,115180.0,115170.0,2.72650208]
[1755984073517,0.169716,115180.0,115170.0,2.72650208]
[1755984073718,0.955716,115180.0,115170.0,2.72650208]
[1755984077418,0.955406,115180.0,115170.0,2.72650208]
[1755984078019,0.955406,115180.0,115170.0,2.88186061]
[1755984093235,0.955406,115180.0,115170.0,2.72650208]
[1755984097142,0.955406,115180.0,115170.0,2.88186061]
[1755984097444,0.955506,115180.0,115170.0,2.88186061]
[1755984097943,0.955506,115180.0,115170.0,2.72650208]
[1755984102045,0.955506,115180.0,115170.0,2.88186061]
[1755984104344,0.955506,115180.0,115170.0,2.72650208]
[1755984104846,0.955406,115180.0,115170.0,2.72650208]
[1755984105148,0.955326,115180.0,115170.0,2.72650208]
[1755984106047,0.955326,115180.0,115170.0,2.88186061]
[1755984107650,0.955326,115180.0,115170.0,2.72650208]
[1755984109255,0.169446,115180.0,115170.0,2.88186061]
[1755984109454,0.955326,115180.0,115170.0,2.88186061]
[1755984109854,0.169446,115180.0,115170.0,2.88186061]
[1755984110057,0.941726,115180.0,115170.0,2.88186061]
[1755984116759,0.941726,115180.0,115170.0,2.72650208]
[1755984120364,0.941826,115180.0,115170.0,2.72650208]
[1755984128574,0.941826,115180.0,115170.0,2.88186061]
[1755984129473,0.941826,115180.0,115170.0,2.72650208]
[1755984129474,0.941746,115180.0,115170.0,2.72650208]
[1755984130574,0.941916,115180.0,115170.0,2.72650208]
[1755984130774,0.941916,115180.0,115170.0,2.70869958]
[1755984131075,0.941916,115180.0,115170.0,2.86405811]
[1755984131772,0.941746,115180.0,115170.0,2.86405811]
[1755984141573,0.941746,115180.0,115170.0,2.70869958]
[1755984144279,0.941646,115180.0,115170.0,2.70869958]
[1755984147179,0.155846,115180.0,115170.0,2.70869958]
[1755984147384,0.941606,115180.0,115170.0,2.70869958]
[1755984148080,0.941706,115180.0,115170.0,2.70869958]
[1755984148878,0.941706,115180.0,115170.0,2.86405811]
[1755984159586,0.941706,115180.0,115170.0,2.70869958]
[1755984165888,0.941706,115180.0,115170.0,2.86405811]
[1755984166898,0.955506,115180.0,115170.0,2.86405811]
[1755984179309,0.955506,115180.0,115170.0,2.37533813]
[1755984179512,0.955506,115180.0,115170.0,2.86405811]
[1755984182112,0.955506,115180.0,115170.0,2.37533813]
[1755984182313,0.955676,115180.0,115170.0,2.37533813]
[1755984182507,0.955676,115180.0,115170.0,2.86405811]
[1755984182814,0.955676,115180.0,115170.0,2.37533813]
[1755984183012,0.955676,115180.0,115170.0,2.86405811]
[1755984183816,0.955506,115180.0,115170.0,2.86405811]
[1755984184410,0.955676,115180.0,115170.0,2.37533813]
[1755984184715,1.78123958,115180.0,115170.0,1.001]
[1755984184915,1.78123958,115180.0,115170.0,1.06411211]
[1755984185110,1.78123958,115180.0,115170.0,1.02981211]
[1755984185911,1.78323958,115180.0,115170.0,1.02881211]
[1755984186416,1.78123958,115180.0,115170.0,1.02881211]
[1755984186617,1.78723958,115180.0,115170.0,0.9516]
[1755984187612,1.2985196,115180.0,115170.0,0.9516]
[1755984187917,1.79579549,115180.0,115170.0,0.9516]
[1755984190818,1.79579549,115180.0,115170.0,0.97455]
[1755984190819,1.81517289,115180.0,115170.0,0.97455]
[1755984198224,1.81517289,115180.0,115170.0,0.98376]
[1755984198423,1.81517289,115180.0,115170.0,0.97455]
[1755984199419,1.81517289,115180.0,115170.0,0.98376]
[1755984200224,1.02941289,115180.0,115170.0,0.98376]
[1755984200423,1.81553289,115180.0,115170.0,1.00504]
[1755984200623,1.02941289,115180.0,115170.0,1.00504]
[1755984200821,1.81553289,115180.0,115170.0,1.00504]
[1755984201621,1.81553289,115180.0,115170.0,1.03838]
[1755984203325,1.81553289,115180.0,115170.0,1.05288]
[1755984203924,0.54069291,115180.0,115170.0,1.05288]
[1755984204224,1.81541289,115180.0,115170.0,1.05288]
[1755984204924,2.17621289,115180.0,115170.0,1.05288]
[1755984205822,2.17621289,115180.0,115170.0,1.03838]
[1755984207524,2.17621289,115180.0,115170.0,1.05223]
[1755984209929,1.92621289,115180.0,115170.0,1.05223]
[1755984211433,1.56541289,115180.0,115170.0,1.05223]
[1755984211633,1.92621289,115180.0,115170.0,1.05223]
[1755984212031,1.14021289,115180.0,115170.0,1.05223]
[1755984212334,1.92609289,115180.0,115170.0,1.05223]
[1755984212633,1.90334289,115180.0,115170.0,1.05223]
[1755984213536,1.54254289,115180.0,115170.0,1.05223]
[1755984213738,0.75666289,115180.0,115170.0,1.05223]
[1755984213928,1.54254289,115180.0,115170.0,1.05223]
[1755984214224,1.90334289,115180.0,115170.0,1.05223]
[1755984214426,1.90334289,115180.0,115170.0,1.13044211]
[1755984216738,1.54254289,115180.0,115170.0,1.13044211]
[1755984218233,1.90334289,115180.0,115170.0,1.13044211]
[1755984220341,1.90334289,115180.0,115170.0,1.00504]
[1755984220841,1.90334289,115180.0,115170.0,1.05127]
[1755984221336,1.11746289,115180.0,115170.0,1.05127]
[1755984221641,1.90378289,115180.0,115170.0,1.05127]
[1755984227255,2.04798289,115180.0,115170.0,1.05127]
[1755984227447,1.90378289,115180.0,115170.0,1.05127]
[1755984232753,1.90346289,115180.0,115170.0,1.05127]
[1755984242065,1.11746289,115180.0,115170.0,1.05127]
[1755984242257,1.90338289,115180.0,115170.0,1.05127]
[1755984243462,0.62874291,115180.0,115170.0,1.05127]
[1755984243761,1.90338289,115180.0,115170.0,1.05127]
[1755984247364,1.90338289,115180.0,115170.0,1.12948211]
[1755984247566,1.90338289,115180.0,115170.0,1.05127]
[1755984249667,1.90338289,115180.0,115170.0,1.12948211]
[1755984265378,1.90338289,115180.0,115170.0,1.09710211]
[1755984265578,1.90338289,115180.0,115170.0,1.08325211]
[1755984266080,1.90338289,115180.0,115170.0,1.0535]
[1755984267184,1.11746289,115180.0,115170.0,1.0535]
[1755984267479,2.04758289,115180.0,115170.0,1.0535]
[1755984267672,1.90338289,115180.0,115170.0,1.0535]
[1755984272482,1.54258289,115180.0,115170.0,1.0535]
[1755984272678,1.90338289,115180.0,115170.0,1.0535]
[1755984274488,1.54258289,115180.0,115170.0,1.0535]
[1755984274687,1.90338289,115180.0,115170.0,1.0535]
[1755984278793,1.90338289,115180.0,115170.0,1.0435]
[1755984279492,3.55482289,115180.0,115170.0,1.0435]
[1755984281090,3.19402289,115180.0,115170.0,1.0435]
[1755984281290,3.55482289,115180.0,115170.0,1.0435]
[1755984283598,3.19402289,115180.0,115170.0,1.0435]
[1755984283799,3.55482289,115180.0,115170.0,1.0435]
[1755984284098,3.19402289,115180.0,115170.0,1.0435]
[1755984284299,3.55482289,115180.0,115170.0,1.0435]
[1755984286608,3.19402289,115180.0,115170.0,1.0435]
[1755984286809,3.55482289,115180.0,115170.0,1.0435]
[1755984298219,3.69902289,115180.0,115170.0,1.0435]
[1755984298419,3.55482289,115180.0,115170.0,1.0435]
[1755984313235,3.5546953,115180.0,115170.0,1.0435]
[1755984315839,3.5546953,115180.0,115170.0,1.04076]
[1755984319440,3.6988953,115180.0,115170.0,1.04076]
[1755984319642,3.5546953,115180.0,115170.0,1.04076]
[1755984339747,3.6988953,115180.0,115170.0,1.04076]
[1755984340147,3.5546953,115180.0,115170.0,1.04076]
[1755984348153,3.06597532,115180.0,115170.0,1.04076]
[1755984348452,3.5546953,115180.0,115170.0,1.04076]
[1755984363866,3.5543353,115180.0,115170.0,1.04076]
[1755984364763,2.7687753,115180.0,115170.0,1.04076]
[1755984364965,3.5543353,115180.0,115170.0,1.04076]
[1755984365763,2.7687753,115180.0,115170.0,1.04076]
[1755984365964,3.5542353,115180.0,115170.0,1.04076]
[1755984368467,3.1934353,115180.0,115170.0,1.04076]
[1755984368669,3.5542353,115180.0,115170.0,1.04076]
[1755984369469,3.1934353,115180.0,115170.0,1.04076]
[1755984369670,3.5542353,115180.0,115170.0,1.04076]
[1755984376487,3.1934353,115180.0,115170.0,1.04076]
[1755984376685,3.5542353,115180.0,115170.0,1.04076]
[1755984382788,3.5541953,115180.0,115170.0,1.04076]
[1755984382985,2.7686753,115180.0,115170.0,1.04076]
[1755984383373,3.5541953,115180.0,115170.0,1.04076]
[1755984384888,2.7686753,115180.0,115170.0,1.04076]
[1755984385083,3.5541953,115180.0,115170.0,1.04076]
[1755984385781,3.1933953,115180.0,115170.0,1.04076]
[1755984385987,3.5541953,115180.0,115170.0,1.04076]
[1755984388392,3.06547532,115180.0,115170.0,1.04076]
[1755984388581,3.5541953,115180.0,115170.0,1.04076]
[1755984406599,2.27995532,115180.0,115170.0,1.04076]
[1755984406906,1.9026753,115180.0,115170.0,1.04076]
[1755984410313,3.5541553,115180.0,115170.0,1.04076]
[1755984414610,3.1933553,115180.0,115170.0,1.04076]
[1755984414813,3.5541553,115180.0,115170.0,1.04076]
[1755984419114,3.1933553,115180.0,115170.0,1.04076]
[1755984419315,3.5541553,115180.0,115170.0,1.04076]
[1755984431826,3.1933553,115180.0,115170.0,1.04076]
[1755984432125,3.5541553,115180.0,115170.0,1.04076]
[1755984435732,3.55406829,115180.0,115170.0,1.04076]
[1755984441932,2.76862829,115180.0,115170.0,1.04076]
[1755984442130,3.55402829,115180.0,115170.0,1.04076]
[1755984445739,3.55398829,115180.0,115170.0,1.04076]
[1755984446138,1.90250829,115180.0,115170.0,1.04076]
[1755984447247,1.11714829,115180.0,115170.0,1.04076]
[1755984447436,1.90250829,115180.0,115170.0,1.04076]
[1755984453245,1.11714829,115180.0,115170.0,1.04076]
[1755984453544,1.90250829,115180.0,115170.0,1.04076]
[1755984459552,1.11714829,115180.0,115170.0,1.04076]
[1755984459749,1.90250829,115180.0,115170.0,1.04076]
[1755984461553,1.11714829,115180.0,115170.0,1.04076]
[1755984461757,1.90250829,115180.0,115170.0,1.04076]
[1755984462258,1.11714829,115180.0,115170.0,1.04076]
[1755984462455,1.90250829,115180.0,115170.0,1.04076]
[1755984462956,1.90246829,115180.0,115170.0,1.04076]
[1755984470562,1.41374831,115180.0,115170.0,1.04076]
[1755984470764,1.90246829,115180.0,115170.0,1.04076]
[1755984471467,1.54166829,115180.0,115170.0,1.04076]
[1755984471657,1.90246829,115180.0,115170.0,1.04076]
[1755984472960,2.15397995,115180.0,115170.0,0.96455]
[1755984473165,2.64269993,115180.0,115170.0,0.96455]
[1755984473568,2.15397995,115180.0,115170.0,0.96455]
[1755984474160,2.78689993,115180.0,115170.0,0.9404284]
[1755984474368,2.8079637,115180.0,115170.0,0.9174784]
[1755984476467,2.8079637,115180.0,115170.0,0.9411584]
[1755984477264,2.8079637,115180.0,115170.0,0.9176068]
[1755984477670,2.8079637,115180.0,115170.0,0.8869183]
[1755984479065,2.5579637,115180.0,115170.0,0.8869183]
[1755984479265,2.9187637,115180.0,115170.0,0.8869183]
[1755984479865,2.9187637,115180.0,115170.0,0.8434086]
[1755984480059,2.9187637,115180.0,115170.0,0.8167837]
[1755984480362,2.9187637,115180.0,115170.0,0.7941835]
[1755984481870,2.89769993,115180.0,115170.0,0.7941835]
[1755984487576,2.89769993,115180.0,115170.0,0.7462041]
[1755984487776,2.89769993,115180.0,115170.0,0.7031445]
[1755984488679,2.89769993,115180.0,115170.0,0.6854466]
[1755984488877,2.89769993,115180.0,115170.0,0.6571931]
[1755984491080,2.89769993,115180.0,115170.0,0.629577]
[1755984491280,2.89769993,115180.0,115170.0,0.6055642]
[1755984491776,2.89769993,115180.0,115170.0,0.5737149]
[1755984491980,2.89769993,115180.0,115170.0,0.5242428]
[1755984492984,2.89769993,115180.0,115170.0,0.4903598]
[1755984493183,2.91871223,115180.0,115170.0,0.4452916]
[1755984493389,2.91871223,115180.0,115170.0,0.4404576]
[1755984493589,2.91871223,115180.0,115170.0,0.4047573]
[1755984493780,2.91871223,115180.0,115170.0,0.3643905]
[1755984494085,2.91871223,115180.0,115170.0,0.3240237]
[1755984494276,2.13339223,115180.0,115170.0,0.2818758]
[1755984494476,2.91871223,115180.0,115170.0,0.2228782]
[1755984497289,2.91871223,115180.0,115170.0,0.1998676]
[1755984497586,2.91871223,115180.0,115170.0,0.1765935]
[1755984497786,2.91871223,115180.0,115170.0,0.1516878]
[1755984503088,2.13339223,115180.0,115170.0,0.1516878]
[1755984503287,2.91867223,115180.0,115170.0,0.1516878]
[1755984503691,2.42995225,115180.0,115170.0,0.1516878]
[1755984508900,2.41078945,115180.0,115170.0,0.1516878]
[1755984510300,1.92206947,115180.0,115170.0,0.1516878]
[1755984510502,2.41078945,115180.0,115170.0,0.1201578]
[1755984518715,2.40927779,115180.0,115170.0,0.1201578]
[1755984523520,2.41078949,115180.0,115170.0,0.1201578]
[1755984524721,4.06250949,115180.0,115170.0,0.1201578]
[1755984528422,4.06250949,115180.0,115170.0,0.0968878]
[1755984530223,3.27722949,115180.0,115170.0,0.0968878]
[1755984530522,4.06386949,115180.0,115170.0,0.0968878]
[1755984536426,3.34226949,115180.0,115170.0,0.0968878]
[1755984536730,4.06386949,115180.0,115170.0,0.0968878]
[1755984539726,4.06386949,115180.0,115170.0,0.0640378]
[1755984540833,4.06386949,115180.0,115170.0,0.0873978]
[1755984541524,3.34226949,115180.0,115170.0,0.0873978]
[1755984541731,4.06386949,115180.0,115170.0,0.0873978]
[1755984543733,3.34226949,115180.0,115170.0,0.0873978]
[1755984544034,4.06386949,115180.0,115170.0,0.0873978]
[1755984546326,4.55258947,115180.0,115170.0,0.0873978]
[1755984548332,4.06386949,115180.0,115170.0,0.0873978]
[1755984549229,4.55258947,115180.0,115170.0,0.0873978]
[1755984555144,3.76594947,115180.0,115170.0,0.0873978]
[1755984555444,4.55450947,115180.0,115170.0,0.0873978]
[1755984555937,3.76594947,115180.0,115170.0,0.0873978]
[1755984556144,4.55438947,115180.0,115170.0,0.0873978]
[1755984557947,3.76594947,115180.0,115170.0,0.0873978]
[1755984558150,4.55434947,115180.0,115170.0,0.0873978]
[1755984561449,2.78850951,115180.0,115170.0,0.0873978]
[1755984561753,4.06558949,115180.0,115170.0,0.0873978]
[1755984562554,4.55430947,115180.0,115170.0,0.0873978]
[1755984562856,2.78850951,115180.0,115170.0,0.1099678]
[1755984563056,4.06558949,115180.0,115170.0,0.1099678]
[1755984563258,4.06558949,115180.0,115170.0,0.1198578]
[1755984563449,4.55430947,115180.0,115170.0,0.1198578]
[1755984563647,4.06558949,115180.0,115170.0,0.1198578]
[1755984570663,3.34398949,115180.0,115170.0,0.1198578]
[1755984570863,4.06558949,115180.0,115170.0,0.1198578]
[1755984574962,4.06558949,115180.0,115170.0,0.0972878]
[1755984575162,4.55430947,115180.0,115170.0,0.0972878]
[1755984578565,4.55430947,115180.0,115170.0,0.0873978]
[1755984579366,3.83270947,115180.0,115170.0,0.0873978]
[1755984579562,4.55430947,115180.0,115170.0,0.0873978]
[1755984583367,4.55436793,115180.0,115170.0,0.0873978]
[1755984585864,3.83276793,115180.0,115170.0,0.0873978]
[1755984586071,4.55436793,115180.0,115170.0,0.0873978]
[1755984588476,3.83276793,115180.0,115170.0,0.0873978]
[1755984588774,4.55436793,115180.0,115170.0,0.0873978]
[1755984592569,4.55424793,115180.0,115170.0,0.0873978]
[1755984594278,3.76600793,115180.0,115170.0,0.0873978]
[1755984594578,4.55416793,115180.0,115170.0,0.0873978]
[1755984601076,0.1257322,115170.0,115160.0,0.31152]
[1755984601380,2.27280292,115170.0,115160.0,0.29673]
[1755984602282,2.27280292,115170.0,115160.0,0.33162]
[1755984602578,2.27280292,115170.0,115160.0,0.33262]
[1755984602784,2.27480292,115170.0,115160.0,0.33262]
[1755984603079,1.48804292,115170.0,115160.0,0.35526]
[1755984603280,2.27788292,115170.0,115160.0,0.35626]
[1755984603785,2.27788292,115170.0,115160.0,0.37032]
[1755984604585,2.27780292,115170.0,115160.0,0.37032]
[1755984604885,2.27880292,115170.0,115160.0,0.37032]
[1755984605285,2.42300292,115170.0,115160.0,0.37032]
[1755984605487,1.74124892,115170.0,115160.0,0.37032]
[1755984605686,2.53000892,115170.0,115160.0,0.37032]
[1755984606687,2.53040892,115170.0,115160.0,0.37032]
[1755984611087,2.50933816,115170.0,115160.0,0.37032]
[1755984611489,2.50917816,115170.0,115160.0,0.37032]
[1755984613489,1.72017816,115170.0,115160.0,0.37032]
[1755984613794,2.50913816,115170.0,115160.0,0.37032]
[1755984617699,1.72017816,115170.0,115160.0,0.37032]
[1755984617901,2.50921816,115170.0,115160.0,0.37032]
[1755984618299,1.72017816,115170.0,115160.0,0.37032]
[1755984618500,2.50909816,115170.0,115160.0,0.37032]
[1755984618901,2.86193437,115170.0,115160.0,0.37032]
[1755984619305,4.51373437,115170.0,115160.0,0.37032]
[1755984621197,4.51373437,115170.0,115160.0,0.35626]
[1755984621902,4.87453437,115170.0,115160.0,0.35626]
[1755984622106,4.87453437,115170.0,115160.0,0.37032]
[1755984622797,3.89693441,115170.0,115160.0,0.37032]
[1755984623003,4.87437437,115170.0,115160.0,0.37032]
[1755984630403,4.87437437,115170.0,115160.0,0.432899]
[1755984631801,4.87637437,115170.0,115160.0,0.432899]
[1755984632310,4.87537437,115170.0,115160.0,0.432899]
[1755984633108,4.87637437,115170.0,115160.0,0.432899]
[1755984633609,4.38765439,115170.0,115160.0,0.432899]
[1755984636209,4.38765439,115170.0,115160.0,0.37032]
[1755984637702,4.87637437,115170.0,115160.0,0.37032]
[1755984638109,4.87637437,115170.0,115160.0,0.432899]
[1755984638313,4.87637437,115170.0,115160.0,0.37032]
[1755984638705,4.38765439,115170.0,115160.0,0.33543]
[1755984638905,4.38765439,115170.0,115160.0,0.36936]
[1755984639611,4.87637437,115170.0,115160.0,0.36936]
[1755984642712,4.87637437,115170.0,115160.0,0.431939]
[1755984643115,4.89732793,115170.0,115160.0,0.36936]
[1755984644016,4.89732793,115170.0,115160.0,0.33543]
[1755984647714,4.89732793,115170.0,115160.0,0.32137]
[1755984653024,4.87637437,115170.0,115160.0,0.383949]
[1755984657533,4.89733842,115170.0,115160.0,0.383949]
[1755984657727,4.87637437,115170.0,115160.0,0.383949]
[1755984662232,4.08761437,115170.0,115160.0,0.383949]
[1755984662434,4.87757437,115170.0,115160.0,0.417689]
[1755984662940,4.87757437,115170.0,115160.0,0.35511]
[1755984663131,4.87757437,115170.0,115160.0,0.32137]
[1755984663737,4.87757437,115170.0,115160.0,0.383949]
[1755984664842,4.87749437,115170.0,115160.0,0.383949]
[1755984665342,4.08761437,115170.0,115160.0,0.383949]
[1755984665543,4.87761437,115170.0,115160.0,0.383949]
[1755984666241,4.87761437,115170.0,115160.0,0.32137]
[1755984667744,4.89857858,115170.0,115160.0,0.32137]
[1755984668646,4.87761437,115170.0,115160.0,0.383949]
[1755984670951,4.08761437,115170.0,115160.0,0.417689]
[1755984671154,4.87781437,115170.0,115160.0,0.417689]
[1755984672255,4.08761437,115170.0,115160.0,0.417689]
[1755984672456,4.87769437,115170.0,115160.0,0.417689]
[1755984673454,4.08761437,115170.0,115160.0,0.417689]
[1755984673755,4.87797437,115170.0,115160.0,0.417689]
[1755984674459,4.08761437,115170.0,115160.0,0.417689]
[1755984674660,4.8989387,115170.0,115160.0,0.35511]
[1755984675360,4.8989387,115170.0,115160.0,0.32137]
[1755984676854,4.87797437,115170.0,115160.0,0.32137]
[1755984677060,4.8989386,115170.0,115160.0,0.32137]
[1755984677261,4.87797437,115170.0,115160.0,0.32137]
[1755984677860,4.87797437,115170.0,115160.0,0.383949]
[1755984678761,4.87797437,115170.0,115160.0,0.32137]
[1755984679264,4.87797437,115170.0,115160.0,0.383949]
[1755984679663,4.87797437,115170.0,115160.0,0.32137]
[1755984679863,4.87797437,115170.0,115160.0,0.383949]
[1755984680064,4.87797437,115170.0,115160.0,0.32137]
[1755984681367,4.89893849,115170.0,115160.0,0.32137]
[1755984682770,4.87797437,115170.0,115160.0,0.383949]
[1755984682969,4.89893849,115170.0,115160.0,0.32137]
[1755984688964,4.89893849,115170.0,115160.0,0.28371]
[1755984689164,4.89893849,115170.0,115160.0,0.26007]
[1755984689976,4.89893849,115170.0,115160.0,0.2843]